Cogmind - Beta 11 X8 @@@ ROGUE MODE // 2021.12.03 @ 00:03:51 Player: Runia Result: Destroyed by G-50 Soldier with Heavy Laser Performance ------------- Evolutions (4) 2000 Regions Visited (15) 3000 Robots Destroyed (178) 890 Value Destroyed (5143) 5143 Prototype IDs (39) 780 Alien Tech Used (0) 0 Bonus (904) 904 TOTAL SCORE: 12717 Bonus ------- High Alert Combat Kills 172 Follower Combat Kills 432 Met Data Miner 300 Cogmind --------- Core Integrity 0/850 Matter 166/300 Energy 691/700 System Corruption 0% Temperature Cool (36) Movement Core (100) Ox1 Location -6/Factory Parts ------- > --- POWER (1) -------- (None) > --- PROPULSION (4) --- (None) > --- UTILITY (7) ------ Experimental Energy Well Advanced Signal Interpreter Improved Weapon Shielding > --- WEAPON (3) ------- 1C-UTU's Sword "Lootmaker" > --- INVENTORY (5) ---- Femtoactuators System Shield Neutron Cannon Peak State ------------ > --- POWER ------------ Reinforced Fission Core > --- PROPULSION ------- Carbon-fiber Leg Enhanced Flexi-carbon Leg Enhanced Flexi-carbon Leg Advanced Myomer Leg > --- UTILITY ---------- High-capacity Storage Unit Makeshift Sensor Array Makeshift Transmission Jammer Advanced Reaction Control System Improved Weapon Shielding Layered Medium Armor Plating Layered Medium Armor Plating > --- WEAPON ----------- 1C-UTU's Sword "Lootmaker" 1C-UTU's Sword "Choppy" Spear > --- INVENTORY -------- Antimatter Reactor Antimatter Reactor Advanced Energy Well Experimental Energy Well Advanced Terrain Scan Processor Femtoactuators Experimental Actuator Array Advanced Transmission Jammer 1C-UTU's Buckler Advanced Component Analysis Suite System Purifier Plasma Cannon Neutron Cannon Rocket Launcher Improved Grenade Launcher Power Maul [Rating: 97] Favorites ----------- Power Reinforced Fission Core Engine Heavy Ion Engine Power Core Reinforced Fission Core Reactor Cold Fusion Reactor Propulsion Advanced Myomer Leg Treads Light Treads Leg Advanced Myomer Leg Wheel Wheel Utility High-capacity Storage Unit Device Makeshift Sensor Array Storage High-capacity Storage Unit Processor Experimental Melee Analysis Suite Hackware Hacking Suite Protection Improved Weapon Shielding Weapon Minigun Energy Gun Particle Gun Energy Cannon Neutron Cannon Ballistic Gun Minigun Launcher Grenade Launcher Special Weapon Plasma Cutter Impact Weapon Heavy Mace Slashing Weapon 1C-UTU's Sword "Lootmaker" Piercing Weapon Spear Build | -11 -10 -10 -9 -9 -9 -8 -8 -8 -7 -7 -7 -6 -6 -6 -6 ------- Run | Scr Mat Min Mat Min Exi Min Mat Sto Fac Low Dat Pro Fac Was Fac Slots Evolved 8 | . . . 2 . . . 2 . 2 . . . 2 . . Power . | . . . . . . . . . . . . . . . . Propulsion 2 | . . . . . . . 1 . 1 . . . . . . Utility 5 | . . . 1 . . . 1 . 1 . . . 2 . . Weapon 1 | . . . 1 . . . . . . . . . . . . Parts Attached 200 | . 18 2 27 . 26 5 31 20 29 3 8 10 7 5 9 Power 13 | . 3 . 1 . 3 1 . 1 1 1 . . . 1 1 Engine 8 | . 3 . 1 . 2 . . . 1 . . . . . 1 Core 3 | . . . . . . 1 . 1 . 1 . . . . . Reactor 2 | . . . . . 1 . . . . . . . . 1 . Propulsion 56 | . 6 2 5 . 8 . 11 6 7 . 3 1 2 3 2 Treads 19 | . 2 . 5 . 5 . 5 1 . . . . . . 1 Leg 36 | . 4 1 . . 3 . 6 5 7 . 3 1 2 3 1 Wheel 1 | . . 1 . . . . . . . . . . . . . Hover . | . . . . . . . . . . . . . . . . Flight . | . . . . . . . . . . . . . . . . Utility 74 | . 2 . 6 . 7 4 9 8 19 2 4 3 4 1 5 Device 27 | . 1 . . . 4 2 . 1 9 1 2 2 2 1 2 Storage 7 | . 1 . 1 . . 2 2 . . . . . . . 1 Processor 8 | . . . 2 . 1 . 1 . 2 1 . . . . 1 Hackware 1 | . . . . . . . . . 1 . . . . . . Protection 31 | . . . 3 . 2 . 6 7 7 . 2 1 2 . 1 Artifact . | . . . . . . . . . . . . . . . . Weapon 57 | . 7 . 15 . 8 . 11 5 2 . 1 6 1 . 1 Energy Gun 1 | . 1 . . . . . . . . . . . . . . Energy Cannon 2 | . . . . . . . . . . . . 2 . . . Ballistic Gun 27 | . 4 . 11 . 6 . 5 1 . . . . . . . Ballistic Cannon . | . . . . . . . . . . . . . . . . Launcher 14 | . 2 . 4 . 1 . 3 2 . . . 2 . . . Special Weapon 1 | . . . . . 1 . . . . . . . . . . Impact Weapon 2 | . . . . . . . . 1 1 . . . . . . Slashing Weapon 9 | . . . . . . . 3 1 . . 1 2 1 . 1 Piercing Weapon 1 | . . . . . . . . . 1 . . . . . . Special Melee Weapon . | . . . . . . . . . . . . . . . . Unidentified Prototypes 11 | . . . 2 . 6 1 . . . . 1 . . . 1 Parts Lost 55 | . 4 . 1 . 10 1 2 9 8 . 3 3 4 6 4 Power 5 | . 1 . . . 1 1 . . 1 . . . . . 1 Propulsion 20 | . 2 . . . 3 . . 3 4 . 2 1 1 2 2 Utility 19 | . . . . . 2 . . 5 3 . 1 2 3 2 1 Weapon 11 | . 1 . 1 . 4 . 2 1 . . . . . 2 . Highest Loss Streak 10 | . 4 . 1 . 10 1 1 4 2 . 3 1 4 6 4 Average Slot Usage (%) 96 | . 91 85 97 100 99 100 99 96 99 92 90 98 87 63 23 Engine 5 | . 13 14 11 11 9 . . . 6 . . . . . 1 Core 4 | . . . . . . 10 9 9 . 7 7 7 6 3 . Treads 9 | . 13 . 18 22 19 . 14 5 . . . . . . . Leg 14 | . 11 18 1 . 2 22 12 19 29 23 21 29 24 20 . Device 4 | . 9 . . . 3 10 . . 6 14 10 6 16 9 3 Storage 10 | . 14 14 11 11 11 11 13 9 7 7 7 7 6 5 2 Processor 8 | . . . 10 11 11 11 9 9 11 11 10 3 . . 5 Protection 9 | . . . 10 11 7 . 12 17 10 3 7 19 12 6 3 Ballistic Gun 16 | . 17 28 32 33 32 33 13 2 . . . . . . . Impact Weapon 1 | . . . . . . . . 4 7 7 3 . . . . Slashing Weapon 7 | . . . . . . . 12 18 12 7 11 9 11 10 4 Piercing Weapon 1 | . . . . . . . . . 2 7 7 7 6 5 . Naked Turns . | . . . . . . . . . . . . . . . . Heaviest Build 99 | 14 33 32 44 44 44 79 80 76 67 74 78 99 97 79 10 Greatest Support 114 | 20 40 20 43 40 50 50 70 63 81 60 114 114 106 96 28 Greatest Overweight (x) 8 | . 8 3 4 1 1 1 2 2 1 1 2 . 1 1 3 Average Overweight (x) . | . . 2 1 1 . 1 1 . . 1 . . . . . Largest Inventory Capacity 20 | 8 15 15 15 15 15 20 20 20 20 20 20 20 20 20 5 Average Capacity 17 | 8 13 15 15 15 15 19 20 20 20 20 20 20 20 18 5 Most Carried 20 | 5 13 15 15 15 15 20 20 20 20 16 20 20 19 20 5 Average Carried 16 | 5 7 13 14 14 12 18 19 18 18 16 17 19 17 17 4 Final Capacity 20 | 8 15 15 15 15 15 20 20 20 20 20 20 20 20 5 5 Final Carried 20 | 4 11 15 15 15 13 20 20 20 17 16 20 19 19 5 3 Class Distribution -------------------- 59% | Scavenger-Mutant 21% | Gunner 10% | Mutant 6% | Scavenger-Gunner Dominant Class ---------------- Mutant | -10/Materials Mutant | -10/Mines Gunner | -9/Materials Gunner | -9/Mines Gunner | -9/Exiles Scavenger-Mutant | -8/Mines Scavenger-Mutant | -8/Materials Scavenger-Mutant | -8/Storage Scavenger-Mutant | -7/Factory Scavenger-Mutant | -7/Lower Caves Scavenger-Mutant | -7/Data Miner Scavenger-Mutant | -6/Proximity Caves Scavenger-Mutant | -6/Factory Scavenger-Mutant | -6/Waste Mutant | -6/Factory Resources | -11 -10 -10 -9 -9 -9 -8 -8 -8 -7 -7 -7 -6 -6 -6 -6 ----------- Run | Scr Mat Min Mat Min Exi Min Mat Sto Fac Low Dat Pro Fac Was Fac Matter Collected 4452 | 200 200 249 1020 . 849 159 984 232 270 15 85 69 . . 120 Remotely . | . . . . . . . . . . . . . . . . Salvage Created 8319 | . 297 60 1380 . 642 120 1959 1001 1660 194 440 306 140 . 120 Parts 458 | . 24 10 82 . 51 11 92 58 80 2 21 13 10 . 4 Haulers Intercepted 15 | . . . 5 . . . 6 3 . . . . . . 1 Recyclers Shooed 4 | . 1 1 . . . . 1 . 1 . . . . . . Parts Field Recycled . | . . . . . . . . . . . . . . . . Retrieved Matter . | . . . . . . . . . . . . . . . . Parts Self-Destructed 9 | . . . . . . . . . . 1 . 8 . . . Prevented . | . . . . . . . . . . . . . . . . Kills | -11 -10 -10 -9 -9 -9 -8 -8 -8 -7 -7 -7 -6 -6 -6 -6 ------- Run | Scr Mat Min Mat Min Exi Min Mat Sto Fac Low Dat Pro Fac Was Fac Combat Hostiles Destroyed 115 | . 9 . 27 . 5 1 26 13 20 . 4 8 2 . . Melee 45 | . . . . . . . 9 8 20 . 4 2 2 . . Guns 34 | . 5 . 15 . 2 1 11 . . . . . . . . AOE 36 | . 4 . 12 . 3 . 6 5 . . . 6 . . . Classes Destroyed 18 | . 5 2 5 . 3 . 1 1 1 . . . . . . Worker 9 | . . 2 2 . . . 2 2 1 . . . . . . Builder 6 | . 1 . 1 . . . 1 2 1 . . . . . . Tunneler 1 | . . 1 . . . . . . . . . . . . . Hauler 15 | . . . 5 . . . 6 3 . . . . . . 1 Recycler 13 | . 1 . 3 . . . 3 2 4 . . . . . . Mechanic 1 | . . . 1 . . . . . . . . . . . . Operator 4 | . 1 . . . . . 1 1 1 . . . . . . Turret 1 | . . . . . 1 . . . . . . . . . . Watcher 7 | . . . 1 . . . 4 1 1 . . . . . . Swarmer 22 | . 3 . 9 . . . 7 . . . . 3 . . . Grunt 54 | . 6 . 11 . . . 14 7 12 . . 4 . . . Brawler 4 | . . . 2 . . . . . 1 . . 1 . . . Duelist 1 | . . . . . . . 1 . . . . . . . . Sentry 16 | . . . 5 . . . 4 5 2 . . . . . . Hunter 4 | . . . . . . . . 1 1 . . . 2 . . Programmer 4 | . . . . . . . . . 4 . . . . . . Enhanced Grunt 4 | . . . . . . . . . . . 4 . . . . Zionite 8 | . . . . . 8 . . . . . . . . . . Assembled 4 | . . . . . 4 . . . . . . . . . . Best Kill Streak 12 | . 8 2 8 . 9 1 12 7 5 . 2 4 1 . 1 Combat Bots Only 7 | . 7 . 6 . 4 1 5 5 4 . 2 4 1 . . Max Kills in Single Turn 4 | . 2 1 4 . 2 1 2 3 1 . 1 2 1 . 1 Gunslinging . | . . . . . . . . . . . . . . . . Exploded 4 | . 2 . 4 . 2 . 2 2 . . . 2 . . . Melee 1 | . . . . . . . 1 1 1 . 1 1 1 . . Uniques/NPCs Destroyed 5 | . . . . . 4 1 . . . . . . . . . 8R-AWN (-9/Exiles) EX-BIN (-9/Exiles) EX-HEX (-9/Exiles) EX-DEC (-9/Exiles) 1C-UTU (-8/Mines) Combat | -11 -10 -10 -9 -9 -9 -8 -8 -8 -7 -7 -7 -6 -6 -6 -6 -------- Run | Scr Mat Min Mat Min Exi Min Mat Sto Fac Low Dat Pro Fac Was Fac Damage Taken 9925 | . 873 14 524 . 1393 390 1033 1478 1447 . 566 487 519 285 916 Core 1943 | . 204 . 52 . 72 75 97 183 217 . 145 32 114 140 612 Absorbed by Shields . | . . . . . . . . . . . . . . . . Core Remaining (%) 52 | 100 . 18 . . . 50 . 49 . . . 43 . . . Volleys Fired 268 | . 38 6 52 . 80 20 54 4 . . . 13 1 . . Largest 3 | . 2 2 3 . 3 3 3 1 . . . 2 1 . . Hottest 116 | . 85 43 75 . 75 76 78 36 . . . 116 90 . . Shots Fired 569 | . 70 12 142 . 143 56 126 4 . . . 15 1 . . Gun 527 | . 65 12 135 . 138 56 121 . . . . . . . . Cannon 12 | . . . . . . . . . . . . 11 1 . . Launcher 27 | . 5 . 7 . 2 . 5 4 . . . 4 . . . Special 3 | . . . . . 3 . . . . . . . . . . Kinetic 504 | . 42 12 135 . 138 56 121 . . . . . . . . Thermal 38 | . 23 . . . 3 . . . . . . 11 1 . . Explosive 27 | . 5 . 7 . 2 . 5 4 . . . 4 . . . Electromagnetic . | . . . . . . . . . . . . . . . . Robot Hit Streak 28 | . 8 5 16 . 28 15 23 1 . . . 2 . . . Robot Miss Streak 4 | . 2 2 4 . 3 2 2 2 . . . 1 . . . Penetration Max 1 | . . . . . 1 . 1 . . . . . . . . Secondary Targets 5 | . 2 . 2 . 1 . . . . . . . . . . Max Gunslinging Chain 1 | . 1 . 1 . 1 . . . . . . . . . . Shots Hit Robots 633 | . 46 6 88 . 116 48 120 47 74 4 41 14 9 . 20 Core Hits 283 | . 21 4 53 . 41 10 59 29 30 2 15 13 3 . 3 Critical Kills 18 | . . . . . 5 . 12 . . . 1 . . . . Critical Parts Destroyed 26 | . . . 3 . 8 1 12 . . . 2 . . . . Critical Strikes 61 | . 2 . 3 . 13 3 26 2 3 . 4 . 2 . 3 Burn 2 | . 2 . . . . . . . . . . . . . . Destroy 47 | . . . 3 . 13 3 24 . . . 4 . . . . Sever 12 | . . . . . . . 2 2 3 . . . 2 . 3 Melee Attacks 334 | . . . . . . . 49 57 103 4 67 14 17 3 20 Impact 20 | . . . . . . . . 1 13 1 5 . . . . Slashing 274 | . . . . . . . 49 56 83 3 38 7 15 3 20 Piercing 40 | . . . . . . . . . 7 . 24 7 2 . . Sneak Attacks 44 | . . . . . . . 8 15 17 . 2 1 . . 1 Combat Hostiles 5 | . . . . . . . 1 . 4 . . . . . . Follow-up Attacks 43 | . . . . . . . 6 6 12 1 16 2 . . . Damage Inflicted 23392 | . 897 73 2316 . 2064 744 4775 3846 4228 433 1790 939 387 . 900 Guns 6224 | . 577 73 1489 . 1930 744 1411 . . . . . . . . Cannons 27 | . . . . . . . . . . . . 27 . . . Explosions 2915 | . 320 . 827 . 133 . 551 610 . . . 474 . . . Melee 14225 | . . . . . . . 2813 3236 4228 433 1790 438 387 . 900 Ramming . | . . . . . . . . . . . . . . . . Kinetic 5977 | . 330 73 1489 . 1930 744 1411 . . . . . . . . Thermal 275 | . 247 . . . 1 . . . . . . 27 . . . Explosive 2915 | . 320 . 827 . 133 . 551 610 . . . 474 . . . Electromagnetic . | . . . . . . . . . . . . . . . . Impact 364 | . . . . . . . . . 265 99 . . . . . Slashing 13062 | . . . . . . . 2813 3236 3633 334 1474 285 387 . 900 Piercing 799 | . . . . . . . . . 330 . 316 153 . . . Highest Corruption 4 | . . . . . . . . . 4 2 2 4 . . . Average Corruption 2 | . . . . . . . . . 1 2 2 3 . . . Corruption Purged 5 | . . . . . . . . . 5 . . . . . . Effects 20 | . . . . . . . . . 8 . 5 7 . . . Message Errors 9 | . . . . . . . . . 3 . 2 4 . . . Matter Fused 3 | . . . . . . . . . 1 . . 2 . . . Heat Flow Errors 5 | . . . . . . . . . 3 . 2 . . . . Energy Discharges 2 | . . . . . . . . . 1 . . 1 . . . Data Loss (minor) 1 | . . . . . . . . . . . 1 . . . . Overload Shots . | . . . . . . . . . . . . . . . . Overflow Damage 2319 | . . . 12 . . . 423 818 619 194 89 59 4 . 101 Projectiles . | . . . . . . . . . . . . . . . . Explosions 12 | . . . 12 . . . . . . . . . . . . Melee 2307 | . . . . . . . 423 818 619 194 89 59 4 . 101 Knockbacks 3 | . . . . . . . . . 3 . . . . . . Impact 3 | . . . . . . . . . 3 . . . . . . Kinetic . | . . . . . . . . . . . . . . . . Secondary . | . . . . . . . . . . . . . . . . Self-Inflicted Damage 361 | . 12 . 86 . . . . 181 . . . 82 . . . Shots 11 | . 1 . 4 . . . . 4 . . . 2 . . . Rammed . | . . . . . . . . . . . . . . . . Targets Rammed . | . . . . . . . . . . . . . . . . Kicked . | . . . . . . . . . . . . . . . . Crushed . | . . . . . . . . . . . . . . . . Highest Temperature 325 | . 181 . 194 . 325 . 120 106 245 . 194 199 60 . . Average Temperature 70 | . 97 . 49 . 140 . 29 56 101 . 83 78 31 . . Received Heat Transfer 2701 | . 300 9 168 . 40 . 504 621 414 . 72 153 . . 420 Effects 1 | . . . . . 1 . . . . . . . . . . Matter Decay 1 | . . . . . 1 . . . . . . . . . . Siege Activations . | . . . . . . . . . . . . . . . . Robots Corrupted . | . . . . . . . . . . . . . . . . Combat Hostiles . | . . . . . . . . . . . . . . . . Parts Fried . | . . . . . . . . . . . . . . . . Impact Corruptions 2 | . . . . . . . . . . 2 . . . . . Robots Melted . | . . . . . . . . . . . . . . . . Combat Hostiles . | . . . . . . . . . . . . . . . . Parts Melted 2 | . . . 2 . . . . . . . . . . . . Heat Transferred 873 | . 814 . . . 9 . . . . . . 50 . . . Parts Sabotaged . | . . . . . . . . . . . . . . . . Parts Stolen . | . . . . . . . . . . . . . . . . Parts Stripped . | . . . . . . . . . . . . . . . . Power Chain Reactions . | . . . . . . . . . . . . . . . . Missiles Intercepted . | . . . . . . . . . . . . . . . . Alert | -11 -10 -10 -9 -9 -9 -8 -8 -8 -7 -7 -7 -6 -6 -6 -6 ------- Run | Scr Mat Min Mat Min Exi Min Mat Sto Fac Low Dat Pro Fac Was Fac Peak Influence 671 | . 291 138 671 217 . 3 552 522 555 . . . 87 30 7 Initial 217 | . . 54 . 217 . . . 76 186 . . . 44 28 . Average 239 | . 91 75 435 217 . 1 295 353 202 . . . 68 22 1 Maximum Alert Level 2 | . 1 . 2 1 . . 2 2 2 . . . . . . Low Security (%) 49 | 100 98 100 7 . . 100 36 4 63 . . . 100 100 100 Level 1 26 | . 1 . 29 100 . . 25 68 23 . . . . . . Level 2 24 | . . . 62 . . . 37 27 12 . . . . . . Level 3 . | . . . . . . . . . . . . . . . . Level 4 . | . . . . . . . . . . . . . . . . Level 5 . | . . . . . . . . . . . . . . . . High Security . | . . . . . . . . . . . . . . . . Max Security . | . . . . . . . . . . . . . . . . Squads Dispatched 25 | . 2 . 5 . . . 4 4 8 . . . 2 . . Investigation 7 | . 2 . 2 . . . 1 . 1 . . . 1 . . Extermination 3 | . . . . . . . . . 3 . . . . . . Reinforcement 12 | . . . 2 . . . 3 3 3 . . . 1 . . Assault 1 | . . . 1 . . . . . . . . . . . . Garrison 2 | . . . . . . . . 1 1 . . . . . . Intercept . | . . . . . . . . . . . . . . . . Construction Impeded 2 | . . . 1 . . . 1 . . . . . . . . Haulers Reinforced 1 | . . . . . . . . . 1 . . . . . . Active Scanning Responses . | . . . . . . . . . . . . . . . . Cargo Convoy Interrupts 1 | . . . . . . . . . 1 . . . . . . Stealth | -11 -10 -10 -9 -9 -9 -8 -8 -8 -7 -7 -7 -6 -6 -6 -6 --------- Run | Scr Mat Min Mat Min Exi Min Mat Sto Fac Low Dat Pro Fac Was Fac Distress Signals 10 | . . . 4 . . . 2 1 3 . . . . . . Communications Jammed 87 | . . . . . . . . 10 77 . . . . . . Distress Signals 86 | . . . . . . . . 9 77 . . . . . . Times Spotted 235 | . 22 3 40 . 20 2 45 30 50 . 4 8 3 4 4 Peak Tracking Total 14 | . 10 2 7 . 10 1 8 8 14 . 2 4 2 4 4 Tactical Retreats 21 | . 1 . 1 . 6 . 3 . 10 . . . . . . Traps | -11 -10 -10 -9 -9 -9 -8 -8 -8 -7 -7 -7 -6 -6 -6 -6 ------- Run | Scr Mat Min Mat Min Exi Min Mat Sto Fac Low Dat Pro Fac Was Fac Traps Triggered 4 | . 1 . 1 . . . . 1 . . . . 1 . . Indirectly . | . . . . . . . . . . . . . . . . Trap Hack Attempts . | . . . . . . . . . . . . . . . . Triggered . | . . . . . . . . . . . . . . . . Disarmed . | . . . . . . . . . . . . . . . . Reprogrammed . | . . . . . . . . . . . . . . . . Reused . | . . . . . . . . . . . . . . . . Traps Extracted . | . . . . . . . . . . . . . . . . Installed . | . . . . . . . . . . . . . . . . Triggered 1 | . . . . . . . . . 1 . . . . . . Exploded 3 | . . . . . 3 . . . . . . . . . . Machines | -11 -10 -10 -9 -9 -9 -8 -8 -8 -7 -7 -7 -6 -6 -6 -6 ---------- Run | Scr Mat Min Mat Min Exi Min Mat Sto Fac Low Dat Pro Fac Was Fac Machines Disabled 30 | . 1 . 3 . 13 . 4 5 2 . 1 . 1 . . Max in Single Turn 2 | . 1 . 1 . 1 . 1 2 1 . 1 . 1 . . Garrison Access 1 | . . . . . . . . 1 . . . . . . . Machines Sabotaged . | . . . . . . . . . . . . . . . . Garrisons Compromised 1 | . . . . . . . . . 1 . . . . . . Overloaded Fab Kills . | . . . . . . . . . . . . . . . . Hacking | -11 -10 -10 -9 -9 -9 -8 -8 -8 -7 -7 -7 -6 -6 -6 -6 --------- Run | Scr Mat Min Mat Min Exi Min Mat Sto Fac Low Dat Pro Fac Was Fac Machines Accessed 43 | . 5 . 6 . 1 . 9 9 6 . 4 . 1 . 2 Terminals 27 | . 4 . 5 . . . 7 5 3 . . . 1 . 2 Fabricators . | . . . . . . . . . . . . . . . . Repair Stations 5 | . . . 1 . . . 1 2 1 . . . . . . Recycling Units 4 | . 1 . . . . . 1 1 1 . . . . . . Scanalyzers 1 | . . . . . . . . . 1 . . . . . . Garrison Access 1 | . . . . . . . . 1 . . . . . . . Total Hacks 147 | . 20 . 17 . 1 . 27 30 17 . 30 . 3 . 2 Successful 95 | . 11 . 11 . 1 . 14 18 8 . 30 . 1 . 1 Failed 51 | . 8 . 6 . . . 13 12 9 . . . 2 . 1 Catastrophic 11 | . 2 . . . . . 2 4 1 . . . 1 . 1 Database Lockouts 1 | . 1 . . . . . . . . . . . . . . Manual 34 | . 14 . 2 . . . 8 8 2 . . . . . . Terminals 79 | . 19 . 12 . . . 23 14 6 . . . 3 . 2 Fabricators . | . . . . . . . . . . . . . . . . Repair Stations 20 | . . . 5 . . . 3 10 2 . . . . . . Recycling Units 8 | . 1 . . . . . 1 4 2 . . . . . . Scanalyzers 7 | . . . . . . . . . 7 . . . . . . Garrison Access 2 | . . . . . . . . 2 . . . . . . . Terminal Hacks 65 | . 10 . 7 . 1 . 8 5 2 . 30 . 1 . 1 Record 12 | . . . . . 1 . . . . . 11 . . . . Part Schematic 12 | . 1 . . . . . . 1 . . 10 . . . . Robot Schematic 6 | . . . . . . . . . . . 6 . . . . Prototype ID Bank 10 | . 1 . 2 . . . 2 1 1 . 3 . . . . Branch Access Points 4 | . 1 . . . . . 1 . 1 . . . 1 . . Terminal Index 2 | . 1 . . . . . 1 . . . . . . . . Alert Level 3 | . . . . . . . . 2 . . . . . . 1 Unreport Threat 2 | . . . . . . . 2 . . . . . . . . Locate Traps 4 | . 3 . 1 . . . . . . . . . . . . Dispatch Records 1 | . 1 . . . . . . . . . . . . . . Maintenance Status 1 | . 1 . . . . . . . . . . . . . . Hauler Manifests 3 | . 1 . 1 . . . 1 . . . . . . . . Zone Layout 5 | . . . 3 . . . 1 1 . . . . . . . Fabricator Hacks . | . . . . . . . . . . . . . . . . Repair Station Hacks 14 | . . . 4 . . . 2 7 1 . . . . . . Scan Component 8 | . . . 2 . . . 1 4 1 . . . . . . Repair 6 | . . . 2 . . . 1 3 . . . . . . . Recycling Unit Hacks 4 | . . . . . . . 1 2 1 . . . . . . Report Inventory 3 | . . . . . . . 1 1 1 . . . . . . Retrieve Components 1 | . . . . . . . . 1 . . . . . . . Scanalyzer 4 | . . . . . . . . . 4 . . . . . . Insert Component 1 | . . . . . . . . . 1 . . . . . . Analyze 3 | . . . . . . . . . 3 . . . . . . Garrison Access Hacks 1 | . . . . . . . . 1 . . . . . . . Seal Access 1 | . . . . . . . . 1 . . . . . . . Unauthorized Hacks 7 | . 1 . . . . . 3 3 . . . . . . . Terminals 4 | . . . . . . . 3 1 . . . . . . . Botnet 4 | . . . . . . . 3 1 . . . . . . . Fabricators . | . . . . . . . . . . . . . . . . Repair Stations . | . . . . . . . . . . . . . . . . Recycling Units 3 | . 1 . . . . . . 2 . . . . . . . Recyclers 1 | . . . . . . . . 1 . . . . . . . Mask 1 | . . . . . . . . 1 . . . . . . . Tunnel 1 | . 1 . . . . . . . . . . . . . . Scanalyzers . | . . . . . . . . . . . . . . . . Garrison Access . | . . . . . . . . . . . . . . . . Data Cores Recovered . | . . . . . . . . . . . . . . . . Used . | . . . . . . . . . . . . . . . . Hacking Detections 32 | . 3 . 4 . . . 9 7 6 . . . 1 . 2 Full Trace Events 5 | . . . . . . . 2 1 1 . . . 1 . . Feedback Events . | . . . . . . . . . . . . . . . . Feedback Blocked . | . . . . . . . . . . . . . . . . Robot Schematics Acquired 6 | . . . . . . . . . . . 6 . . . . Robots Built . | . . . . . . . . . . . . . . . . Authchips . | . . . . . . . . . . . . . . . . Time . | . . . . . . . . . . . . . . . . Total Robot Build Rating . | . . . . . . . . . . . . . . . . Part Schematics Acquired 12 | . 1 . . . . . . 1 . . 10 . . . . Parts Built . | . . . . . . . . . . . . . . . . Authchips . | . . . . . . . . . . . . . . . . Time . | . . . . . . . . . . . . . . . . Total Part Build Rating . | . . . . . . . . . . . . . . . . Parts Repaired 6 | . . . 2 . . . 1 3 . . . . . . . Time 362 | . . . 70 . . . 99 193 . . . . . . . Parts Recycled . | . . . . . . . . . . . . . . . . Recycled Matter . | . . . . . . . . . . . . . . . . Retrieved Matter . | . . . . . . . . . . . . . . . . Retrieved Components 10 | . . . . . . . . 10 . . . . . . . Parts Scanalyzed 1 | . . . . . . . . . 1 . . . . . . Part Schematics Acquired . | . . . . . . . . . . . . . . . . Parts Damaged . | . . . . . . . . . . . . . . . . Bothacking | -11 -10 -10 -9 -9 -9 -8 -8 -8 -7 -7 -7 -6 -6 -6 -6 ------------ Run | Scr Mat Min Mat Min Exi Min Mat Sto Fac Low Dat Pro Fac Was Fac Used RIF Installer . | . . . . . . . . . . . . . . . . Robots Hacked . | . . . . . . . . . . . . . . . . Non-combat . | . . . . . . . . . . . . . . . . Combat . | . . . . . . . . . . . . . . . . Robot Hacks Applied . | . . . . . . . . . . . . . . . . Relay Couplers Released . | . . . . . . . . . . . . . . . . Fabnet Peak Effective % . | . . . . . . . . . . . . . . . . Robots Rewired . | . . . . . . . . . . . . . . . . Allies Hacked 1 | . . . . . . . . . 1 . . . . . . Hacks Repelled . | . . . . . . . . . . . . . . . . Allies | -11 -10 -10 -9 -9 -9 -8 -8 -8 -7 -7 -7 -6 -6 -6 -6 -------- Run | Scr Mat Min Mat Min Exi Min Mat Sto Fac Low Dat Pro Fac Was Fac Total Allies 14 | . . 4 . . . . . 10 . . . . . . . Largest Group 10 | . . 4 2 . . . . 10 3 . . . . . . Highest-Rated Group 173 | . . 71 32 . . . . 173 58 . . . . . . Highest-Rated Ally 31 | . . 31 16 . . . . 29 29 . . . . . . Total Orders 1 | . . . . . . . . . 1 . . . . . . ROAM 1 | . . . . . . . . . 1 . . . . . . Ally Attacks 140 | . . 22 34 . . . . 77 7 . . . . . . Total Damage 1748 | . . 275 353 . . . . 1065 55 . . . . . . Kills 19 | . . 4 6 . . . . 8 1 . . . . . . Allies Corrupted . | . . . . . . . . . . . . . . . . Allies Melted . | . . . . . . . . . . . . . . . . Intel | -11 -10 -10 -9 -9 -9 -8 -8 -8 -7 -7 -7 -6 -6 -6 -6 ------- Run | Scr Mat Min Mat Min Exi Min Mat Sto Fac Low Dat Pro Fac Was Fac Robot Analysis Total . | . . . . . . . . . . . . . . . . Derelict Logs Recovered 3 | . . 1 . . . . . . . . . 2 . . . Drone Launches . | . . . . . . . . . . . . . . . . Drone Recoveries . | . . . . . . . . . . . . . . . . Exploration | -11 -10 -10 -9 -9 -9 -8 -8 -8 -7 -7 -7 -6 -6 -6 -6 ------------- Run | Scr Mat Min Mat Min Exi Min Mat Sto Fac Low Dat Pro Fac Was Fac Turns Passed 11351 | 1 584 514 1221 107 1994 737 1912 1223 1578 208 449 422 161 138 102 Spaces Moved 5214 | 1 275 341 493 43 847 299 687 529 877 105 195 271 80 92 79 Core 104 | . 1 . . . . . . . . . . . . 26 77 Treads 1501 | . 126 . 349 43 683 . 299 . . . . . . . 1 Legs 3193 | 1 148 69 . . 164 299 388 529 877 105 195 271 80 66 1 Wheels 416 | . . 272 144 . . . . . . . . . . . . Hover . | . . . . . . . . . . . . . . . . Flight . | . . . . . . . . . . . . . . . . Fastest Speed 50 | 120 120 125 125 240 130 200 190 120 120 190 120 120 120 50 50 Average Speed 167 | 120 155 138 193 240 198 200 216 159 120 190 162 120 122 100 61 Slowest Speed 450 | 120 450 190 240 240 240 200 260 260 190 190 260 120 190 190 200 Overloaded Moves . | . . . . . . . . . . . . . . . . Propulsion Burnouts . | . . . . . . . . . . . . . . . . Robots Hopped . | . . . . . . . . . . . . . . . . Cave-ins Triggered . | . . . . . . . . . . . . . . . . Exploration Rate (%) 48 | 2 48 82 57 14 75 87 58 92 26 11 80 43 2 93 3 Regions Visited 15 Branch Regions 8 Pre-discovered Areas 3 | . 1 . . . 1 . . . . . 1 . . . . Known Exits Taken 6 | . 1 . 1 . . . 1 . 1 1 1 . . . . Unknown Exits Taken 7 | 1 . 1 . 1 1 1 . 1 . . . 1 . . . Scrap Searched 3 | . . 1 . . . 2 . . . . . . . . . Spaces Dug 38 | . 6 . . . . . 4 2 11 . . 9 4 2 . Terrain Destroyed 212 | . 24 . 36 . 16 9 39 21 11 . . 50 4 2 . Melee 24 | . . . . . . . 4 2 11 . . 1 4 2 . Projectile 34 | . . . . . 4 8 13 . . . . 9 . . . AOE 151 | . 24 . 36 . 10 . 22 19 . . . 40 . . . Terrain Rammed . | . . . . . . . . . . . . . . . . Walls Destroyed . | . . . . . . . . . . . . . . . . Machines Disabled . | . . . . . . . . . . . . . . . . Actions | -11 -10 -10 -9 -9 -9 -8 -8 -8 -7 -7 -7 -6 -6 -6 -6 --------- Run | Scr Mat Min Mat Min Exi Min Mat Sto Fac Low Dat Pro Fac Was Fac Total 7139 | 2 360 372 681 48 1049 394 965 850 1304 110 298 332 126 136 112 Wait 990 | . 3 17 75 4 57 60 121 239 291 . 45 28 19 30 1 Move 5200 | . 274 340 492 42 846 298 686 528 876 104 194 270 80 91 79 Hop . | . . . . . . . . . . . . . . . . Pick Up 112 | . 14 5 14 1 23 9 15 8 12 . 5 . 2 3 1 Fast Attach 45 | . 5 . 6 . 2 1 6 6 5 . 4 1 2 2 5 Attach 56 | . 1 . 5 . 12 1 7 7 9 1 1 1 4 3 4 Detach 7 | . . . . . . . 1 1 . . 1 . 2 1 1 Swap 99 | . 12 2 16 . 12 3 18 7 15 2 3 8 1 . . Drop 97 | 2 13 2 21 1 17 2 17 2 14 . 1 . . 4 1 Fire 268 | . 38 6 52 . 80 20 54 4 . . . 13 1 . . Melee 265 | . . . . . . . 40 48 82 3 44 11 15 2 20 Ram . | . . . . . . . . . . . . . . . . Kick . | . . . . . . . . . . . . . . . . Crush . | . . . . . . . . . . . . . . . . Escape Stasis . | . . . . . . . . . . . . . . . . Rewire . | . . . . . . . . . . . . . . . . Trap . | . . . . . . . . . . . . . . . . Miscellaneous . | . . . . . . . . . . . . . . . . Route ------- -11/Scrapyard -10/Materials -10/Mines -9/Materials (discovered 2 exits: *Mat / *Min) -9/Mines -9/Exiles -8/Mines -8/Materials (discovered 4 exits: *Fac x2 / *Sto x2) -8/Storage -7/Factory (discovered 3 exits: *Fac / *Low x2) -7/Lower Caves -7/Data Miner -6/Proximity Caves -6/Factory (discovered 2 exits: Low x2) -6/Waste -6/Factory History --------- Turn | Location | Event 2 | -11/Scrapyard | Discovered new exit (range 0) 2 | -11/Scrapyard | Entered Materials 44 | -10/Materials | Identified exit to Mines 92 | -10/Materials | Central database locked down 304 | -10/Materials | Build established: Mutant 397 | -10/Materials | Core integrity fell below 50% 433 | -10/Materials | Core integrity fell below 20% 461 | -10/Materials | Destroyed 7 combat bots 470 | -10/Materials | Lost 4 parts (1p2n1w) 586 | -10/Materials | Entered Mines 670 | -10/Mines | Discovered new exit (range 3) 671 | -10/Mines | Received a Mining Laser from a helpful Derelict 741 | -10/Mines | Learned location of 1 exit from Materials 813 | -10/Mines | Assisted by bots powering up and referring to "LRC-V3" 1100 | -10/Mines | Entered Materials 1100 | -9/Materials | Accompanied by 2 allies 1100 | -9/Materials | Evolved 2 slots: Utility x1, Weapon x1 1101 | -9/Materials | Identified exit to Mines 1570 | -9/Materials | Build established: Gunner 1856 | -9/Materials | Discovered new exit (range 15) 1900 | -9/Materials | First assault squad dispatched 2120 | -9/Materials | Repaired Minigun 2153 | -9/Materials | Repaired Imp. Treads 2321 | -9/Materials | Entered Mines 2328 | -9/Mines | Received a Rocket Launcher from a helpful Derelict 2416 | -9/Mines | Deemed a non-threat by the Exiles lab entrance 2418 | -9/Mines | Discovered new exit (range 5) 2428 | -9/Mines | Entered Exiles 2493 | -9/Exiles | Met 8R-AWN 2527 | -9/Exiles | Met EX-HEX 2620 | -9/Exiles | Met EX-DEC 2644 | -9/Exiles | Learned location of Zion (-6) 2714 | -9/Exiles | Discovered new exit (range 12) 3511 | -9/Exiles | Attacked by the Exiles 3700 | -9/Exiles | Destroyed 8R-AWN 3715 | -9/Exiles | Found Prototype Ballistic Gun 3718 | -9/Exiles | Found Prototype Processor 3721 | -9/Exiles | Found Prototype Device 3722 | -9/Exiles | Identified AS-neutralizer No. 17b 3728 | -9/Exiles | Identified 8R-AWN's Boregun 3731 | -9/Exiles | Lost 10 parts (1p3n2u4w) 3985 | -9/Exiles | Build established: Scavenger-Mutant 4081 | -9/Exiles | Destroyed EX-BIN 4088 | -9/Exiles | Destroyed EX-HEX 4118 | -9/Exiles | Destroyed EX-DEC 4188 | -9/Exiles | Identified Exp. Targeting Computer 4200 | -9/Exiles | Found Prototype Device 4206 | -9/Exiles | Identified System Purifier 4422 | -9/Exiles | Entered Mines 4423 | -8/Mines | 1C-UTU came to Exiles' defense 4484 | -8/Mines | Destroyed 1C-UTU 4493 | -8/Mines | Found Prototype Slashing Weapon 4498 | -8/Mines | Found Prototype Protection 4505 | -8/Mines | Found Prototype Slashing Weapon 4516 | -8/Mines | Found Prototype Device 4519 | -8/Mines | Found Prototype Device 4522 | -8/Mines | Found Prototype Processor 4547 | -8/Mines | Identified Exp. Melee Analysis Suite 4558 | -8/Mines | Identified Femtoactuators 4561 | -8/Mines | Identified Exp. Actuator Array 4588 | -8/Mines | Identified 1C-UTU's Buckler 4596 | -8/Mines | Identified 1C-UTU's Sword "Lootmaker" 4599 | -8/Mines | Identified 1C-UTU's Sword "Choppy" 5051 | -8/Mines | Discovered new exit (range 8) 5159 | -8/Mines | Entered Materials 5159 | -8/Materials | Evolved 2 slots: Propulsion x1, Utility x1 5676 | -8/Materials | Discovered new exit (range 15) 5900 | -8/Materials | Build established: Scavenger-Gunner 6286 | -8/Materials | Build established: Scavenger-Mutant 6425 | -8/Materials | Identified exit to Storage 6865 | -8/Materials | Repaired Adv. Myomer Leg 7042 | -8/Materials | Discovered new exit (range 3) 7071 | -8/Materials | Entered Storage 7103 | -8/Storage | Garrison activated, responded to threat 7140 | -8/Storage | Lost 3 parts (1n2u) 7274 | -8/Storage | Repaired Arm. Treads 7374 | -8/Storage | Repaired Adv. Myomer Leg 7511 | -8/Storage | Core integrity fell below 50% 7538 | -8/Storage | Lost 4 parts (1n2u1w) 7712 | -8/Storage | Assisted by bots powering up and referring to "LRC-V3" 8012 | -8/Storage | Discovered new exit (range 16) 8241 | -8/Storage | Repaired Rnf. Fission Core 8294 | -8/Storage | Entered Factory 8294 | -7/Factory | Accompanied by 3 allies 8294 | -7/Factory | Evolved 2 slots: Propulsion x1, Utility x1 9292 | -7/Factory | Garrison activated, responded to threat 9386 | -7/Factory | Discovered new exit (range 13) 9669 | -7/Factory | Identified exit to Lower Caves 9795 | -7/Factory | Cargo convoy interrupted 9872 | -7/Factory | Entered Lower Caves 9951 | -7/Lower Caves | A Derelict revealed a hidden shortcut to meet someone special 9970 | -7/Lower Caves | Identified exit to Data Miner 10080 | -7/Lower Caves | Entered Data Miner 10080 | -7/Data Miner | Discovered new exit (range 6) 10117 | -7/Data Miner | Met Data Miner 10156 | -7/Data Miner | Learned location of Section 7 (-2) 10156 | -7/Data Miner | Acquired the access code to Warlord's prototype stash 10185 | -7/Data Miner | Received God Mode back door access code from Data Miner 10214 | -7/Data Miner | Data Conduit disabled 10323 | -7/Data Miner | Lost 3 parts (2n1u) 10375 | -7/Data Miner | Core integrity fell below 50% 10528 | -7/Data Miner | Identified exit to Proximity Caves 10529 | -7/Data Miner | Entered Proximity Caves 10945 | -6/Proximity Caves | Discovered new exit (range 5) 10951 | -6/Proximity Caves | Entered Factory 10951 | -6/Factory | Evolved 2 slots: Utility x2 10952 | -6/Factory | Identified exit to Lower Caves 11089 | -6/Factory | Lost 4 parts (1n3u) 11112 | -6/Factory | Sucked down chute 11112 | -6/Factory | Entered Waste 11115 | -6/Waste | Found Prototype Launcher 11191 | -6/Waste | Spotted C-40 Crusher 11198 | -6/Waste | Spotted C-40 Crusher 11207 | -6/Waste | Crushed by Compactor (1 part destroyed, 1 dropped) 11207 | -6/Waste | Spotted C-40 Crusher 11214 | -6/Waste | Spotted C-40 Crusher 11214 | -6/Waste | Spotted C-40 Crusher 11223 | -6/Waste | Crushed by Compactor (1 part destroyed, 2 dropped) 11226 | -6/Waste | Crushed by Compactor (1 part destroyed, 2 dropped) 11229 | -6/Waste | Crushed by Compactor (1 part destroyed, 2 dropped) 11232 | -6/Waste | Crushed by Compactor (1 part destroyed, 2 dropped) 11238 | -6/Waste | Crushed by Compactor (1 part destroyed) 11243 | -6/Waste | Discovered new exit (range 11) 11250 | -6/Waste | Entered Factory 11269 | -6/Factory | Lost 6 parts (2n2u2w) 11325 | -6/Factory | Core integrity fell below 50% 11344 | -6/Factory | Core integrity fell below 20% 11352 | -6/Factory | Destroyed by G-50 Soldier with Heavy Laser Last Messages --------------- 11290_ Sneak attack on A-15 Conveyor. 11290_ Destroyed Imp. Ion Engine. 11304_ A-15 Conveyor destroyed. 11306_ Acquired 120 matter. 11307_ ALERT: All DSF locations entering lockdown mode. 11308_ Acquired Lgt. Deuterium Engine. 11313_ Critical hit (Burn: +37). 11321_ Lgt. Deuterium Engine destroyed. 11324_ Acquired Med. Treads. 11327_ G-50 Soldier suffers critical hit (Burn). 11330_ Med. Treads destroyed. 11331_ Adv. Terrain Scanner destroyed. 11333_ G-50 Soldier Carbon-fiber Leg severed. 11339_ Acquired Carbon-fiber Leg. 11341_ Carbon-fiber Leg destroyed. 11347_ Critical hit (Burn: +37). 11348_ G-50 Soldier Lgt. Angular Momentum Engine severed. 11350_ G-50 Soldier Carbon-fiber Leg severed. 11352_ Destroyed Carbon-fiber Leg. 11352_ Critical hit (Burn: +37). Map ----- +----------------------------------------------------+ | ?????????????????????????????????????????????????? | | ?????????????????????????????????????????????????? | | ?????????????????????????????????????????????????? | | ?????????????????????????????????????????????????? | | ?????????????????????????????????????????????????? | | ?????????????????????????????????????????????????? | | ????????????????????????????#????????????????????? | | ??????????????????????????????#??????????????????? | | ?????????????????????????????????????????????????? | | ?????????????????????????????????????????????????? | | ?????????????????????????????????????????????????? | | ????????????????????#?????????#??????????????????? | | ?????????????????????????????????????????????????? | | ?????????????????????????????????????????????????? | | ?????????????#??????????#????????????????????????? | | ?????????????????????????????????????????????????? | | ??????????????????????????????????#??????????????? | | ???????#?????????????????????????????????????????? | | ??????????????????????????#?????#????#???????????? | | ???????????????????????############?????#????????? | | ???????????????#????????# #??????????????? | | ????????????????????????# #??????????????? | | ??????????? ????????????# #??????????????? | | ????????????????#########*!g #??#???#???????? | | ?????????????? ?# !g*! #??????????????? | | ????????????????# !#@ ##?#?#?????????? | | ????????????????# # #??????????????? | | ??????????????? # /g #??????????????? | | ????????????????# ###########+###??????????????? | | ????????????????# # """T""" # #????#???????????? | | ??????????????? ?+ """ """ # #????????????????? | | ????? ? ?????? ?# # #???#????????????? | | ???????????? ??# """"" # #????????????????? | | ?????? ???? ?? + """"" + #????????????????? | | ?????????? ???# """ # #?????#??????????? | | ???????????+### ??? # # #????????????????? | | ??????????????#?????# # #????????????????? | | ?????????? ?????????#####+##### #????#???????????? | | ????????????????????????# #???# #????#???#???????? | | ????????????????????#####+###?# #????????????????? | | ????????????????????# ### #????????????????? | | ????????????????????# "! #?# ##???????????????? | | ?????????????????? ?# T #?? ?????????????????? | | ????????????????????# " #?? #????#???????????? | | ????????????????????# #?? #????????????????? | | ????????????????????# #?? ####?????????????? | | ?????????????????? + """" #?# ?????????????? | | ???????????????? # """" #?# ???? #???????? | | ??????????????# # """" #?# """"?? #???????? | | ??????????????# ?# """" #?# """"? #???????? | +----------------------------------------------------+ Best States ------------- Heat Dissipation 54 Energy Generation 19 Energy Capacity 910 Matter Stores 500 Matter Capacity 500 Sight Range 18 Robot Scan Range 19 Terrain Scan Range 20 Terrain Scan Density 10 Jamming Range 16 Armor Coverage 450 Weapon Shielding 66 Melee Speed Boost 50 Evasion (%) 62 Targeting Accuracy 12 Melee Accuracy 18 Recoil Reduction 3 Offensive Hacking 10 Item Schematics ----------------- Hcp. Storage Unit | -10/Materials | Hacked Proton Missile Launcher | -8/Storage | Hacked Combat Drone Bay | -7/Data Miner | Free Lgt. Regenerative Plating | -7/Data Miner | Free Biomechanical Wings | -7/Data Miner | Free Gravity Neutralizing Apparatus | -7/Data Miner | Free Imp. Heavy Machine Gun | -7/Data Miner | Free Field Propulsion Drive | -7/Data Miner | Free Adv. System Shield | -7/Data Miner | Free Neutron Cannon | -7/Data Miner | Free Antimatter Reactor | -7/Data Miner | Free Myomer Leg | -7/Data Miner | Free Robot Schematics ------------------ G-47 Trooper | -7/Data Miner | Free D-53 Grenadier | -7/Data Miner | Free M-14 Sweeper | -7/Data Miner | Free R-10 Processor | -7/Data Miner | Free B-48 Gladiator | -7/Data Miner | Free D-63 Destroyer | -7/Data Miner | Free Fabricated ------------ Nothing Alien Tech Used ----------------- None Achievements -------------- None Challenges ------------ None Game ------ Seed TransportParticleRedirector Manual? 0 Play Time 01:23:53 Cumulative 532.4 hours Start 2021.12.02 @ 22:20:28 End 2021.12.03 @ 00:03:51 Sessions 1 Manual Loads 0 Difficulty Rogue Special Mode None Game No. 518 Rogue 518 Adventurer 0 Explorer 0 Win Type - Total 15 Types 9/2/3/1/0/0/0/0/0 Lore% 86 Gallery% 95 Achievement% 74 Wizard Run 0 Options --------- ASCII 0 Keyboard 0 Movement Mouse Keybinds 1 Fullscreen 2 Font 24/Smallcaps Map View 76x50 Tactical HUD 1 Map Filters NONE Filters NONE Steam 1 RUN: 2959dcc2-75b9-46be-9d36-437528f2fdb3